[Event "Titled Tuesday Blitz April 18 Late 2023"]
[White "Naroditsky, Daniel"]
[Black "Prohaszka, Peter"]
[WhiteFideId "2026961"]
[BlackFideId "726265"]
[WhiteElo "2633"]
[BlackElo "2626"]
[Result "1-0"]
[Round "10"]
[TimeControl "180+2"]
[Date "2023.04.18"]
[WhiteClock "0:00:12"]
[BlackClock "0:00:09"]

1. d4 {[%clk 0:03:00]}  d5 {[%clk 0:02:49]} 2. Nc3 {[%clk 0:03:01]}  c6 {[%clk 0:02:48]} 3. Bf4 {[%clk 0:03:00]}  Bf5 {[%clk 0:02:45]} 4. e3 {[%clk 0:03:00]}  e6 {[%clk 0:02:42]} 5. Nf3 {[%clk 0:03:00]}  Bd6 {[%clk 0:02:40]} 6. Ne5 {[%clk 0:03:01]}  h5 {[%clk 0:02:27]} 7. Bd3 {[%clk 0:02:59]}  g5 {[%clk 0:02:20]} 8. Bxf5 {[%clk 0:02:04]}  exf5 {[%clk 0:02:21]} 9. Qd3 {[%clk 0:02:04]}  gxf4 {[%clk 0:02:19]} 10. Qxf5 {[%clk 0:02:04]}  Nh6 {[%clk 0:02:04]} 11. Qxh5 {[%clk 0:02:04]}  fxe3 {[%clk 0:01:55]} 12. fxe3 {[%clk 0:02:01]}  Nd7 {[%clk 0:01:54]} 13. O-O-O {[%clk 0:01:40]}  Bxe5 {[%clk 0:01:38]} 14. dxe5 {[%clk 0:01:41]}  Qe7 {[%clk 0:01:37]} 15. e4 {[%clk 0:01:42]}  d4 {[%clk 0:01:28]} 16. Rxd4 {[%clk 0:01:37]}  Qxe5 {[%clk 0:01:24]} 17. Qd1 {[%clk 0:01:25]}  O-O-O {[%clk 0:01:24]} 18. Qd2 {[%clk 0:01:26]}  Ng4 {[%clk 0:01:16]} 19. Rd1 {[%clk 0:01:15]}  Qe7 {[%clk 0:01:01]} 20. h3 {[%clk 0:01:07]}  Nge5 {[%clk 0:01:00]} 21. Qf2 {[%clk 0:01:03]}  Rdg8 {[%clk 0:00:48]} 22. Kb1 {[%clk 0:00:45]}  Qg5 {[%clk 0:00:46]} 23. R4d2 {[%clk 0:00:41]}  Qf6 {[%clk 0:00:39]} 24. Qxa7 {[%clk 0:00:39]}  Qd8 {[%clk 0:00:20]} 25. Rd4 {[%clk 0:00:22]}  Qb6 {[%clk 0:00:18]} 26. Qa3 {[%clk 0:00:20]}  Rd8 {[%clk 0:00:11]} 27. Na4 {[%clk 0:00:11]}  Qa6 {[%clk 0:00:09]} 28. Qb3 {[%clk 0:00:09]}  b5 {[%clk 0:00:08]} 29. Nc3 {[%clk 0:00:06]}  Nc5 {[%clk 0:00:07]} 30. Qb4 {[%clk 0:00:07]}  Rxd4 {[%clk 0:00:05]} 31. Qxd4 {[%clk 0:00:07]}  Ncd7 {[%clk 0:00:06]} 32. Qd6 {[%clk 0:00:06]}  Re8 {[%clk 0:00:06]} 33. Nd5 {[%clk 0:00:05]}  Qb7 {[%clk 0:00:05]} 34. Ne7+ {[%clk 0:00:05]}  Kd8 {[%clk 0:00:02]} 35. Nf5 {[%clk 0:00:05]}  Qc7 {[%clk 0:00:02]} 36. Qa3 {[%clk 0:00:02]}  Qb8 {[%clk 0:00:02]} 37. Nd6 {[%clk 0:00:03]}  Rf8 {[%clk 0:00:02]} 38. Qa5+ {[%clk 0:00:03]}  Qc7 {[%clk 0:00:02]} 39. Qc3 {[%clk 0:00:04]}  Qb6 {[%clk 0:00:01]} 40. Nf5 {[%clk 0:00:03]}  Kc7 {[%clk 0:00:01]} 41. Qa3 {[%clk 0:00:03]}  Re8 {[%clk 0:00:01]} 42. Qd6+ {[%clk 0:00:03]}  Kb7 {[%clk 0:00:02]} 43. Qd2 {[%clk 0:00:03]}  Kb8 {[%clk 0:00:02]} 44. Qd6+ {[%clk 0:00:03]}  Qc7 {[%clk 0:00:02]} 45. Qd4 {[%clk 0:00:02]}  f6 {[%clk 0:00:03]} 46. h4 {[%clk 0:00:02]}  Rf8 {[%clk 0:00:03]} 47. h5 {[%clk 0:00:03]}  c5 {[%clk 0:00:04]} 48. Qd5 {[%clk 0:00:03]}  c4 {[%clk 0:00:04]} 49. Qxb5+ {[%clk 0:00:02]}  Qb7 {[%clk 0:00:04]} 50. Qa5 {[%clk 0:00:02]}  Rc8 {[%clk 0:00:04]} 51. Nd6 {[%clk 0:00:03]}  Qc7 {[%clk 0:00:03]} 52. Qb5+ {[%clk 0:00:02]}  Qb6 {[%clk 0:00:02]} 53. Qxb6+ {[%clk 0:00:03]}  Nxb6 {[%clk 0:00:03]} 54. Nxc8 {[%clk 0:00:04]}  Nxc8 {[%clk 0:00:03]} 55. h6 {[%clk 0:00:04]}  Ng6 {[%clk 0:00:03]} 56. h7 {[%clk 0:00:05]}  Nce7 {[%clk 0:00:04]} 57. h8=Q+ {[%clk 0:00:04]}  Nxh8 {[%clk 0:00:03]} 58. Rd8+ {[%clk 0:00:05]}  Kc7 {[%clk 0:00:04]} 59. Rxh8 {[%clk 0:00:06]}  Kd6 {[%clk 0:00:04]} 60. a4 {[%clk 0:00:06]}  Nc6 {[%clk 0:00:05]} 61. Rh6 {[%clk 0:00:06]}  Ke5 {[%clk 0:00:05]} 62. b3 {[%clk 0:00:06]}  cxb3 {[%clk 0:00:04]} 63. cxb3 {[%clk 0:00:07]}  Nd4 {[%clk 0:00:04]} 64. Kb2 {[%clk 0:00:07]}  Kxe4 {[%clk 0:00:05]} 65. a5 {[%clk 0:00:07]}  f5 {[%clk 0:00:05]} 66. a6 {[%clk 0:00:08]}  Nb5 {[%clk 0:00:05]} 67. Rb6 {[%clk 0:00:08]}  Na7 {[%clk 0:00:05]} 68. Rb7 {[%clk 0:00:09]}  Nc6 {[%clk 0:00:05]} 69. a7 {[%clk 0:00:10]}  Nxa7 {[%clk 0:00:06]} 70. Rxa7 {[%clk 0:00:11]}  Kf4 {[%clk 0:00:06]} 71. Rf7 {[%clk 0:00:10]}  Kg3 {[%clk 0:00:07]} 72. Rxf5 {[%clk 0:00:10]}  Kxg2 {[%clk 0:00:07]} 73. b4 {[%clk 0:00:11]}  Kg3 {[%clk 0:00:08]} 74. b5 {[%clk 0:00:11]}  Kg4 {[%clk 0:00:09]} 75. Rf1 {[%clk 0:00:12]} 1-0


[Site "https://www.chess.com"]

[Event "Titled Tuesday Blitz April 18 Late 2023"]
[White "Mekhitarian, Krikor Sevag"]
[Black "Pranav, V"]
[WhiteFideId "2107660"]
[BlackFideId "25060783"]
[WhiteElo "2604"]
[BlackElo "2500"]
[Result "0-1"]
[Round "10"]
[TimeControl "180+2"]
[Date "2023.04.18"]
[WhiteClock "0:00:03"]
[BlackClock "0:00:44"]

1. Nf3 {[%clk 0:03:00]}  Nf6 {[%clk 0:02:58]} 2. c4 {[%clk 0:02:55]}  g6 {[%clk 0:02:57]} 3. Nc3 {[%clk 0:02:56]}  Bg7 {[%clk 0:02:57]} 4. e4 {[%clk 0:02:56]}  d6 {[%clk 0:02:58]} 5. d4 {[%clk 0:02:56]}  O-O {[%clk 0:02:58]} 6. h3 {[%clk 0:02:57]}  Nbd7 {[%clk 0:02:59]} 7. Be3 {[%clk 0:02:57]}  e5 {[%clk 0:03:00]} 8. d5 {[%clk 0:02:57]}  a5 {[%clk 0:03:00]} 9. g4 {[%clk 0:02:57]}  Nc5 {[%clk 0:03:00]} 10. Nd2 {[%clk 0:02:57]}  c6 {[%clk 0:03:00]} 11. Be2 {[%clk 0:02:56]}  Bd7 {[%clk 0:02:59]} 12. a4 {[%clk 0:02:53]}  Ne8 {[%clk 0:02:52]} 13. h4 {[%clk 0:02:47]}  f5 {[%clk 0:02:49]} 14. g5 {[%clk 0:02:36]}  Na6 {[%clk 0:02:44]} 15. f3 {[%clk 0:02:30]}  Nec7 {[%clk 0:02:43]} 16. Nb3 {[%clk 0:02:25]}  Nb4 {[%clk 0:02:38]} 17. Qd2 {[%clk 0:02:09]}  fxe4 {[%clk 0:02:34]} 18. fxe4 {[%clk 0:01:59]}  cxd5 {[%clk 0:02:33]} 19. cxd5 {[%clk 0:01:58]}  Nca6 {[%clk 0:02:25]} 20. Nb5 {[%clk 0:01:55]}  Rc8 {[%clk 0:02:01]} 21. Rc1 {[%clk 0:01:55]}  Rxc1+ {[%clk 0:01:59]} 22. Nxc1 {[%clk 0:01:53]}  Bxb5 {[%clk 0:01:54]} 23. axb5 {[%clk 0:01:51]}  Nc5 {[%clk 0:01:44]} 24. Bxc5 {[%clk 0:01:47]}  dxc5 {[%clk 0:01:45]} 25. Rf1 {[%clk 0:01:32]}  Rxf1+ {[%clk 0:01:43]} 26. Kxf1 {[%clk 0:01:31]}  h6 {[%clk 0:01:41]} 27. Bg4 {[%clk 0:01:23]}  hxg5 {[%clk 0:01:33]} 28. hxg5 {[%clk 0:01:21]}  Bf8 {[%clk 0:01:23]} 29. Be6+ {[%clk 0:01:21]}  Kg7 {[%clk 0:01:23]} 30. Qf2 {[%clk 0:01:07]}  Qe7 {[%clk 0:01:13]} 31. b3 {[%clk 0:01:03]}  b6 {[%clk 0:01:12]} 32. Kg2 {[%clk 0:01:03]}  Kh8 {[%clk 0:01:09]} 33. Qf6+ {[%clk 0:00:40]}  Qxf6 {[%clk 0:00:58]} 34. gxf6 {[%clk 0:00:41]}  c4 {[%clk 0:00:58]} 35. bxc4 {[%clk 0:00:36]}  a4 {[%clk 0:00:59]} 36. Kf3 {[%clk 0:00:13]}  a3 {[%clk 0:00:58]} 37. c5 {[%clk 0:00:07]}  Bxc5 {[%clk 0:00:56]} 38. d6 {[%clk 0:00:08]}  Bxd6 {[%clk 0:00:56]} 39. Na2 {[%clk 0:00:08]}  Nc2 {[%clk 0:00:56]} 40. Kg4 {[%clk 0:00:05]}  Kh7 {[%clk 0:00:56]} 41. Bb3 {[%clk 0:00:04]}  Nd4 {[%clk 0:00:56]} 42. Bc4 {[%clk 0:00:05]}  Kh6 {[%clk 0:00:54]} 43. f7 {[%clk 0:00:05]}  Nc2 {[%clk 0:00:52]} 44. Kf3 {[%clk 0:00:01]}  Kg7 {[%clk 0:00:52]} 45. Bd5 {[%clk 0:00:01]}  Nd4+ {[%clk 0:00:47]} 46. Kg4 {[%clk 0:00:02]}  Ne2 {[%clk 0:00:48]} 47. Kf3 {[%clk 0:00:01]}  Nf4 {[%clk 0:00:48]} 48. Bc4 {[%clk 0:00:01]}  Nh3 {[%clk 0:00:45]} 49. Nc3 {[%clk 0:00:02]}  Ng5+ {[%clk 0:00:45]} 50. Ke3 {[%clk 0:00:03]}  Nxf7 {[%clk 0:00:46]} 51. Nd5 {[%clk 0:00:02]}  Bc5+ {[%clk 0:00:46]} 52. Kd3 {[%clk 0:00:01]}  g5 {[%clk 0:00:46]} 53. Nc7 {[%clk 0:00:01]}  Nd8 {[%clk 0:00:41]} 54. Ne6+ {[%clk 0:00:01]}  Nxe6 {[%clk 0:00:42]} 55. Bxe6 {[%clk 0:00:02]}  g4 {[%clk 0:00:41]} 56. Ke2 {[%clk 0:00:02]}  g3 {[%clk 0:00:42]} 57. Kf3 {[%clk 0:00:02]}  Bf2 {[%clk 0:00:41]} 58. Bd5 {[%clk 0:00:02]}  Kf6 {[%clk 0:00:42]} 59. Bc4 {[%clk 0:00:03]}  Ke7 {[%clk 0:00:43]} 60. Bd5 {[%clk 0:00:03]}  Kd6 {[%clk 0:00:43]} 61. Ba2 {[%clk 0:00:03]}  Kc5 {[%clk 0:00:44]} 0-1


[Site "https://www.chess.com"]

[Event "Titled Tuesday Blitz April 18 Late 2023"]
[White "Sargsyan, Shant"]
[Black "Ashraf, Artin"]
[WhiteFideId "13306766"]
[BlackFideId "22514805"]
[WhiteElo "2628"]
[BlackElo "2188"]
[Result "0-1"]
[Round "10"]
[TimeControl "180+2"]
[Date "2023.04.18"]
[WhiteClock "0:00:32"]
[BlackClock "0:00:07"]

1. e3 {[%clk 0:03:00]}  c5 {[%clk 0:02:53]} 2. Nf3 {[%clk 0:02:59]}  Nf6 {[%clk 0:02:48]} 3. b3 {[%clk 0:02:59]}  g6 {[%clk 0:02:45]} 4. Bb2 {[%clk 0:03:00]}  Bg7 {[%clk 0:02:46]} 5. c4 {[%clk 0:03:00]}  O-O {[%clk 0:02:45]} 6. Be2 {[%clk 0:03:01]}  Nc6 {[%clk 0:02:44]} 7. O-O {[%clk 0:03:01]}  b6 {[%clk 0:02:44]} 8. d4 {[%clk 0:03:02]}  cxd4 {[%clk 0:02:44]} 9. Nxd4 {[%clk 0:03:02]}  Bb7 {[%clk 0:02:44]} 10. Bf3 {[%clk 0:03:02]}  Rc8 {[%clk 0:02:41]} 11. Nc3 {[%clk 0:03:02]}  Qc7 {[%clk 0:02:40]} 12. Rc1 {[%clk 0:03:00]}  Qb8 {[%clk 0:02:38]} 13. h3 {[%clk 0:02:57]}  Rfd8 {[%clk 0:02:35]} 14. Nde2 {[%clk 0:02:55]}  Ne5 {[%clk 0:02:20]} 15. Bxb7 {[%clk 0:02:54]}  Qxb7 {[%clk 0:02:21]} 16. Nf4 {[%clk 0:02:54]}  e6 {[%clk 0:02:09]} 17. Nb5 {[%clk 0:02:52]}  Ne4 {[%clk 0:01:54]} 18. Qe2 {[%clk 0:02:46]}  a6 {[%clk 0:01:44]} 19. Nc3 {[%clk 0:02:47]}  Nxc3 {[%clk 0:01:16]} 20. Bxc3 {[%clk 0:02:47]}  b5 {[%clk 0:01:16]} 21. Qb2 {[%clk 0:02:46]}  d6 {[%clk 0:01:10]} 22. cxb5 {[%clk 0:02:46]}  axb5 {[%clk 0:01:08]} 23. Rfd1 {[%clk 0:02:47]}  Rxc3 {[%clk 0:00:47]} 24. Rxc3 {[%clk 0:02:34]}  b4 {[%clk 0:00:46]} 25. Rc2 {[%clk 0:02:22]}  Nf3+ {[%clk 0:00:45]} 26. gxf3 {[%clk 0:02:23]}  Bxb2 {[%clk 0:00:46]} 27. Rxb2 {[%clk 0:02:24]}  Qxf3 {[%clk 0:00:44]} 28. Rbd2 {[%clk 0:02:24]}  d5 {[%clk 0:00:36]} 29. Kh2 {[%clk 0:02:24]}  Rc8 {[%clk 0:00:32]} 30. Nd3 {[%clk 0:02:23]}  Rc3 {[%clk 0:00:19]} 31. Nxb4 {[%clk 0:02:19]}  d4 {[%clk 0:00:18]} 32. Nd3 {[%clk 0:01:59]}  dxe3 {[%clk 0:00:10]} 33. fxe3 {[%clk 0:02:00]}  Qxe3 {[%clk 0:00:10]} 34. b4 {[%clk 0:02:01]}  e5 {[%clk 0:00:09]} 35. Nf2 {[%clk 0:01:49]}  Qf4+ {[%clk 0:00:07]} 36. Kh1 {[%clk 0:01:48]}  Qxb4 {[%clk 0:00:08]} 37. Kg2 {[%clk 0:01:43]}  Qf4 {[%clk 0:00:07]} 38. Nd3 {[%clk 0:01:36]}  Qe4+ {[%clk 0:00:04]} 39. Kh2 {[%clk 0:01:34]}  Qf5 {[%clk 0:00:04]} 40. Rf2 {[%clk 0:01:26]}  Qe6 {[%clk 0:00:04]} 41. Re2 {[%clk 0:01:22]}  e4 {[%clk 0:00:03]} 42. Nf4 {[%clk 0:01:20]}  Qe5 {[%clk 0:00:02]} 43. Rf1 {[%clk 0:01:13]}  g5 {[%clk 0:00:01]} 44. Rg2 {[%clk 0:01:14]}  Rf3 {[%clk 0:00:01]} 45. Re1 {[%clk 0:01:05]}  Qxf4+ {[%clk 0:00:02]} 46. Kg1 {[%clk 0:01:06]}  e3 {[%clk 0:00:02]} 47. a4 {[%clk 0:01:04]}  Rf2 {[%clk 0:00:03]} 48. Re2 {[%clk 0:01:01]}  Rxg2+ {[%clk 0:00:03]} 49. Kxg2 {[%clk 0:01:01]}  Qxa4 {[%clk 0:00:04]} 50. Rxe3 {[%clk 0:01:01]}  Qc6+ {[%clk 0:00:04]} 51. Kg3 {[%clk 0:01:00]}  Kg7 {[%clk 0:00:05]} 52. h4 {[%clk 0:00:59]}  Qc7+ {[%clk 0:00:06]} 53. Kh3 {[%clk 0:00:57]}  Qf4 {[%clk 0:00:06]} 54. Rg3 {[%clk 0:00:54]}  Qxh4+ {[%clk 0:00:06]} 55. Kg2 {[%clk 0:00:55]}  h6 {[%clk 0:00:07]} 56. Rh3 {[%clk 0:00:55]}  Qe4+ {[%clk 0:00:07]} 57. Kh2 {[%clk 0:00:54]}  f5 {[%clk 0:00:08]} 58. Kg1 {[%clk 0:00:55]}  Qg4+ {[%clk 0:00:08]} 59. Kh2 {[%clk 0:00:55]}  Qe2+ {[%clk 0:00:08]} 60. Kh1 {[%clk 0:00:55]}  f4 {[%clk 0:00:08]} 61. Ra3 {[%clk 0:00:54]}  Kg6 {[%clk 0:00:09]} 62. Ra1 {[%clk 0:00:44]}  f3 {[%clk 0:00:08]} 63. Rg1 {[%clk 0:00:38]}  f2 {[%clk 0:00:07]} 64. Rf1 {[%clk 0:00:32]}  Qxf1+ {[%clk 0:00:06]} 65. Kh2 {[%clk 0:00:32]}  Qg1+ {[%clk 0:00:07]} 0-1


[Site "https://www.chess.com"]

[Event "Titled Tuesday Blitz April 18 Late 2023"]
[White "Begmuratov, Alisher"]
[Black "Anton Guijarro, David"]
[WhiteFideId "14203367"]
[BlackFideId "2285525"]
[WhiteElo "2387"]
[BlackElo "2618"]
[Result "1-0"]
[Round "10"]
[TimeControl "180+2"]
[Date "2023.04.18"]
[WhiteClock "0:00:06"]
[BlackClock "0:00:11"]

1. c4 {[%clk 0:03:00]}  c5 {[%clk 0:02:59]} 2. g3 {[%clk 0:03:01]}  Nc6 {[%clk 0:03:00]} 3. Bg2 {[%clk 0:03:01]}  g6 {[%clk 0:03:00]} 4. Nf3 {[%clk 0:03:01]}  Bg7 {[%clk 0:03:01]} 5. O-O {[%clk 0:03:01]}  d6 {[%clk 0:03:01]} 6. Nc3 {[%clk 0:03:01]}  Bf5 {[%clk 0:03:01]} 7. Re1 {[%clk 0:02:55]}  Qd7 {[%clk 0:03:01]} 8. a3 {[%clk 0:02:52]}  Bh3 {[%clk 0:03:00]} 9. Bh1 {[%clk 0:02:50]}  h5 {[%clk 0:03:00]} 10. b4 {[%clk 0:02:50]}  h4 {[%clk 0:02:59]} 11. e3 {[%clk 0:02:38]}  hxg3 {[%clk 0:02:57]} 12. hxg3 {[%clk 0:02:38]}  Bxc3 {[%clk 0:02:48]} 13. dxc3 {[%clk 0:02:35]}  Bg4 {[%clk 0:02:33]} 14. Bg2 {[%clk 0:02:11]}  Bh3 {[%clk 0:01:47]} 15. Bh1 {[%clk 0:02:02]}  Nf6 {[%clk 0:01:39]} 16. b5 {[%clk 0:01:48]}  Na5 {[%clk 0:01:25]} 17. e4 {[%clk 0:01:45]}  Bg4 {[%clk 0:01:20]} 18. e5 {[%clk 0:01:15]}  Rxh1+ {[%clk 0:01:20]} 19. Kxh1 {[%clk 0:01:14]}  Qf5 {[%clk 0:01:20]} 20. Bf4 {[%clk 0:01:03]}  O-O-O {[%clk 0:00:51]} 21. exf6 {[%clk 0:00:59]}  Qh5+ {[%clk 0:00:51]} 22. Kg2 {[%clk 0:00:20]}  Qh3+ {[%clk 0:00:51]} 23. Kg1 {[%clk 0:00:20]}  Rh8 {[%clk 0:00:52]} 24. Nh4 {[%clk 0:00:20]}  Bxd1 {[%clk 0:00:52]} 25. fxe7 {[%clk 0:00:19]}  Re8 {[%clk 0:00:53]} 26. Raxd1 {[%clk 0:00:19]}  Nxc4 {[%clk 0:00:50]} 27. Bxd6 {[%clk 0:00:19]}  Nxd6 {[%clk 0:00:39]} 28. Rxd6 {[%clk 0:00:20]}  Qg4 {[%clk 0:00:35]} 29. Rd2 {[%clk 0:00:18]}  Qc4 {[%clk 0:00:28]} 30. Re3 {[%clk 0:00:16]}  Qxb5 {[%clk 0:00:22]} 31. Ng2 {[%clk 0:00:16]}  g5 {[%clk 0:00:19]} 32. Re1 {[%clk 0:00:15]}  Qb3 {[%clk 0:00:19]} 33. Rd3 {[%clk 0:00:14]}  Qc2 {[%clk 0:00:17]} 34. Rde3 {[%clk 0:00:14]}  Qd2 {[%clk 0:00:16]} 35. c4 {[%clk 0:00:13]}  a6 {[%clk 0:00:16]} 36. R3e2 {[%clk 0:00:13]}  Qd3 {[%clk 0:00:15]} 37. a4 {[%clk 0:00:13]}  Qxc4 {[%clk 0:00:15]} 38. Ne3 {[%clk 0:00:12]}  Qd3 {[%clk 0:00:16]} 39. Ng4 {[%clk 0:00:11]}  Qd4 {[%clk 0:00:16]} 40. Re4 {[%clk 0:00:11]}  Qd6 {[%clk 0:00:16]} 41. Re5 {[%clk 0:00:09]}  b5 {[%clk 0:00:15]} 42. axb5 {[%clk 0:00:09]}  axb5 {[%clk 0:00:16]} 43. R5e3 {[%clk 0:00:08]}  c4 {[%clk 0:00:16]} 44. Ne5 {[%clk 0:00:08]}  Rxe7 {[%clk 0:00:12]} 45. Nxc4 {[%clk 0:00:08]}  bxc4 {[%clk 0:00:13]} 46. Rxe7 {[%clk 0:00:08]}  c3 {[%clk 0:00:13]} 47. R7e3 {[%clk 0:00:08]}  Qd2 {[%clk 0:00:12]} 48. R3e2 {[%clk 0:00:08]}  Qd4 {[%clk 0:00:11]} 49. Re4 {[%clk 0:00:08]}  Qd2 {[%clk 0:00:11]} 50. Rc4+ {[%clk 0:00:08]}  Kd7 {[%clk 0:00:11]} 51. Ree4 {[%clk 0:00:08]}  Kd6 {[%clk 0:00:07]} 52. Red4+ {[%clk 0:00:07]}  Qxd4 {[%clk 0:00:08]} 53. Rxd4+ {[%clk 0:00:07]}  Kc5 {[%clk 0:00:08]} 54. Rd8 {[%clk 0:00:07]}  Kc4 {[%clk 0:00:09]} 55. Kf1 {[%clk 0:00:07]}  c2 {[%clk 0:00:09]} 56. Rc8+ {[%clk 0:00:06]}  Kd3 {[%clk 0:00:10]} 57. Ke1 {[%clk 0:00:06]}  f5 {[%clk 0:00:10]} 58. Rc5 {[%clk 0:00:06]}  f4 {[%clk 0:00:10]} 59. gxf4 {[%clk 0:00:06]}  gxf4 {[%clk 0:00:11]} 60. Rc8 {[%clk 0:00:06]}  f3 {[%clk 0:00:11]} 61. Rc7 {[%clk 0:00:06]} 1-0


[Site "https://www.chess.com"]

[Event "Titled Tuesday Blitz April 18 Late 2023"]
[White "Bilych, Olexiy"]
[Black "Hansen, Eric"]
[WhiteFideId "14156504"]
[BlackFideId "2606771"]
[WhiteElo "2320"]
[BlackElo "2561"]
[Result "0-1"]
[Round "10"]
[TimeControl "180+2"]
[Date "2023.04.18"]
[WhiteClock "0:00:03"]
[BlackClock "0:01:58"]

1. d4 {[%clk 0:03:00]}  Nf6 {[%clk 0:03:00]} 2. c4 {[%clk 0:03:01]}  e6 {[%clk 0:03:00]} 3. Nf3 {[%clk 0:03:02]}  Bb4+ {[%clk 0:03:00]} 4. Nbd2 {[%clk 0:03:00]}  O-O {[%clk 0:02:59]} 5. a3 {[%clk 0:03:00]}  Be7 {[%clk 0:02:58]} 6. e4 {[%clk 0:03:00]}  d6 {[%clk 0:02:58]} 7. Bd3 {[%clk 0:03:00]}  e5 {[%clk 0:02:59]} 8. O-O {[%clk 0:02:56]}  exd4 {[%clk 0:02:56]} 9. Nxd4 {[%clk 0:02:54]}  Nc6 {[%clk 0:02:56]} 10. N2f3 {[%clk 0:02:34]}  Re8 {[%clk 0:02:56]} 11. b4 {[%clk 0:02:31]}  Bf8 {[%clk 0:02:56]} 12. Re1 {[%clk 0:02:30]}  Ne5 {[%clk 0:02:56]} 13. Bb2 {[%clk 0:02:23]}  Bg4 {[%clk 0:02:54]} 14. h3 {[%clk 0:02:22]}  Bh5 {[%clk 0:02:54]} 15. g4 {[%clk 0:02:05]}  Nxd3 {[%clk 0:02:54]} 16. Qxd3 {[%clk 0:02:03]}  Bg6 {[%clk 0:02:55]} 17. Nf5 {[%clk 0:02:02]}  a5 {[%clk 0:02:55]} 18. Bc3 {[%clk 0:01:50]}  axb4 {[%clk 0:02:55]} 19. axb4 {[%clk 0:01:48]}  Rxa1 {[%clk 0:02:55]} 20. Bxa1 {[%clk 0:01:48]}  Nd7 {[%clk 0:02:55]} 21. Rd1 {[%clk 0:01:30]}  b6 {[%clk 0:02:51]} 22. Qd4 {[%clk 0:01:12]}  f6 {[%clk 0:02:46]} 23. h4 {[%clk 0:01:06]}  Qa8 {[%clk 0:02:43]} 24. Qd5+ {[%clk 0:00:48]}  Qxd5 {[%clk 0:02:42]} 25. exd5 {[%clk 0:00:43]}  h5 {[%clk 0:02:43]} 26. Ne3 {[%clk 0:00:31]}  hxg4 {[%clk 0:02:41]} 27. Nxg4 {[%clk 0:00:32]}  Bh5 {[%clk 0:02:41]} 28. Rd4 {[%clk 0:00:28]}  Ra8 {[%clk 0:02:27]} 29. Bb2 {[%clk 0:00:20]}  Ra2 {[%clk 0:02:25]} 30. Bc3 {[%clk 0:00:14]}  Ra3 {[%clk 0:02:25]} 31. Bd2 {[%clk 0:00:05]}  Rxf3 {[%clk 0:02:25]} 32. Ne3 {[%clk 0:00:05]}  Ne5 {[%clk 0:02:20]} 33. Kg2 {[%clk 0:00:05]}  g6 {[%clk 0:02:17]} 34. c5 {[%clk 0:00:03]}  dxc5 {[%clk 0:02:16]} 35. bxc5 {[%clk 0:00:03]}  Bxc5 {[%clk 0:02:17]} 36. Re4 {[%clk 0:00:04]}  Kf7 {[%clk 0:02:13]} 37. Ra4 {[%clk 0:00:03]}  f5 {[%clk 0:02:07]} 38. Ra7 {[%clk 0:00:03]}  Bd6 {[%clk 0:02:06]} 39. Bc3 {[%clk 0:00:03]}  Nd3 {[%clk 0:01:59]} 40. Nc4 {[%clk 0:00:03]}  Rxf2+ {[%clk 0:01:57]} 41. Kg1 {[%clk 0:00:03]}  Bh2+ {[%clk 0:01:57]} 42. Kh1 {[%clk 0:00:03]}  Bf3# {[%clk 0:01:58]} 0-1


[Site "https://www.chess.com"]

[Event "Titled Tuesday Blitz April 18 Late 2023"]
[White "Indjic, Aleksandar"]
[Black "Weetik, Vjacheslav"]
[WhiteFideId "911925"]
[BlackFideId "4153472"]
[WhiteElo "2614"]
[BlackElo "2469"]
[Result "0-1"]
[Round "10"]
[TimeControl "180+2"]
[Date "2023.04.18"]
[WhiteClock "0:00:56"]
[BlackClock "0:00:34"]

1. e4 {[%clk 0:03:00]}  c6 {[%clk 0:03:00]} 2. Nf3 {[%clk 0:03:01]}  d5 {[%clk 0:03:00]} 3. d3 {[%clk 0:03:01]}  Bg4 {[%clk 0:03:00]} 4. Nbd2 {[%clk 0:03:01]}  e6 {[%clk 0:03:00]} 5. h3 {[%clk 0:03:01]}  Bh5 {[%clk 0:03:00]} 6. Qe2 {[%clk 0:03:01]}  Nf6 {[%clk 0:02:58]} 7. g3 {[%clk 0:02:50]}  Be7 {[%clk 0:02:56]} 8. Bg2 {[%clk 0:02:50]}  a5 {[%clk 0:02:56]} 9. a4 {[%clk 0:02:48]}  Na6 {[%clk 0:02:56]} 10. O-O {[%clk 0:02:47]}  O-O {[%clk 0:02:50]} 11. g4 {[%clk 0:02:46]}  Bg6 {[%clk 0:02:49]} 12. Ne5 {[%clk 0:02:46]}  Nd7 {[%clk 0:02:48]} 13. Nxg6 {[%clk 0:02:46]}  hxg6 {[%clk 0:02:46]} 14. f4 {[%clk 0:02:46]}  dxe4 {[%clk 0:02:38]} 15. dxe4 {[%clk 0:02:42]}  g5 {[%clk 0:02:32]} 16. Nf3 {[%clk 0:02:21]}  gxf4 {[%clk 0:02:22]} 17. Bxf4 {[%clk 0:02:22]}  Qb6+ {[%clk 0:02:05]} 18. Kh1 {[%clk 0:02:21]}  Qxb2 {[%clk 0:02:05]} 19. e5 {[%clk 0:02:21]}  Nb4 {[%clk 0:01:57]} 20. Rac1 {[%clk 0:02:20]}  Nd5 {[%clk 0:01:55]} 21. Bg3 {[%clk 0:02:13]}  Nc5 {[%clk 0:01:36]} 22. h4 {[%clk 0:01:56]}  Qa3 {[%clk 0:01:24]} 23. Rfe1 {[%clk 0:01:19]}  Rad8 {[%clk 0:01:07]} 24. h5 {[%clk 0:01:11]}  Qxa4 {[%clk 0:00:48]} 25. c4 {[%clk 0:01:10]}  Nb4 {[%clk 0:00:48]} 26. h6 {[%clk 0:01:09]}  Nbd3 {[%clk 0:00:41]} 27. Ra1 {[%clk 0:01:07]}  Qxc4 {[%clk 0:00:40]} 28. Reb1 {[%clk 0:01:06]}  Qxg4 {[%clk 0:00:40]} 29. Bh2 {[%clk 0:01:04]}  Ne4 {[%clk 0:00:36]} 30. Kg1 {[%clk 0:00:56]}  Bc5+ {[%clk 0:00:34]} 0-1


[Site "https://www.chess.com"]

[Event "Titled Tuesday Blitz April 18 Late 2023"]
[White "Flores, Diego"]
[Black "Aldokhin, Ivan"]
[WhiteFideId "108049"]
[BlackFideId "24115720"]
[WhiteElo "2613"]
[BlackElo "2322"]
[Result "1-0"]
[Round "10"]
[TimeControl "180+2"]
[Date "2023.04.18"]
[WhiteClock "0:01:04"]
[BlackClock "0:00:16"]

1. c4 {[%clk 0:03:00]}  Nf6 {[%clk 0:02:59]} 2. Nc3 {[%clk 0:02:59]}  g6 {[%clk 0:03:00]} 3. e4 {[%clk 0:02:57]}  d6 {[%clk 0:03:00]} 4. d4 {[%clk 0:02:57]}  Bg7 {[%clk 0:03:01]} 5. Nf3 {[%clk 0:02:57]}  O-O {[%clk 0:03:01]} 6. Be2 {[%clk 0:02:58]}  Nc6 {[%clk 0:03:02]} 7. d5 {[%clk 0:02:58]}  Nb4 {[%clk 0:03:02]} 8. h3 {[%clk 0:02:53]}  Re8 {[%clk 0:03:02]} 9. Be3 {[%clk 0:02:51]}  e6 {[%clk 0:03:02]} 10. Qd2 {[%clk 0:02:31]}  exd5 {[%clk 0:03:01]} 11. exd5 {[%clk 0:02:30]}  a5 {[%clk 0:03:01]} 12. O-O {[%clk 0:02:28]}  Na6 {[%clk 0:02:57]} 13. Rfe1 {[%clk 0:02:21]}  Nc5 {[%clk 0:02:54]} 14. Bg5 {[%clk 0:02:05]}  Bd7 {[%clk 0:02:27]} 15. Bf1 {[%clk 0:01:58]}  a4 {[%clk 0:01:49]} 16. g4 {[%clk 0:01:48]}  a3 {[%clk 0:01:46]} 17. b4 {[%clk 0:01:32]}  Nce4 {[%clk 0:01:34]} 18. Nxe4 {[%clk 0:01:31]}  Nxe4 {[%clk 0:01:33]} 19. Rxe4 {[%clk 0:01:31]}  Rxe4 {[%clk 0:01:09]} 20. Bxd8 {[%clk 0:01:30]}  Bxa1 {[%clk 0:01:06]} 21. Bxc7 {[%clk 0:01:30]}  Bb2 {[%clk 0:01:03]} 22. Bxd6 {[%clk 0:01:27]}  Ba4 {[%clk 0:01:00]} 23. Bd3 {[%clk 0:01:24]}  Ree8 {[%clk 0:00:57]} 24. Bc2 {[%clk 0:01:18]}  Bd7 {[%clk 0:00:46]} 25. Bf4 {[%clk 0:01:10]}  Re7 {[%clk 0:00:40]} 26. Bg5 {[%clk 0:01:07]}  f6 {[%clk 0:00:40]} 27. Be3 {[%clk 0:01:07]}  Rae8 {[%clk 0:00:36]} 28. d6 {[%clk 0:01:08]}  Re6 {[%clk 0:00:33]} 29. c5 {[%clk 0:01:08]}  Kh8 {[%clk 0:00:29]} 30. Bb3 {[%clk 0:01:09]}  Re4 {[%clk 0:00:29]} 31. Bd5 {[%clk 0:01:05]}  R4e6 {[%clk 0:00:20]} 32. Bd4 {[%clk 0:01:04]}  Re2 {[%clk 0:00:16]} 33. Qxb2 {[%clk 0:01:04]} 1-0


[Site "https://www.chess.com"]